[Event "AUT-ch U18 Boys 2022"]
[Site "Sankt Veit an der Glan"]
[Date "2022.04.12"]
[Round "4.9"]
[White "Braun, Hagen"]
[Black "Weichhart, Daniel"]
[Result "0-1"]
[ECO "B34"]
[WhiteElo "1252"]
[BlackElo "2032"]
[Annotator "RC"]
[PlyCount "90"]
[EventDate "2022.04.11"]
[EventType "swiss"]
[EventCountry "AUT"]
[SourceTitle "playchess.com"]
[Source "ChessBase"]
[SourceQuality "1"]
[TimeControl "5400+30"]

1. e4 {[%emt 0:00:30]} c5 {[%emt 0:00:05]} 2. Nf3 {[%emt 0:00:00]} Nc6 {[%emt 0:00:03]} 3. d4 {[%emt 0:00:00]} cxd4 {[%emt 0:00:05]} 4. Nxd4 {[%emt 0:00:00]} Nf6 {[%emt 0:00:40]} 5. Nc3 {[%emt 0:00:19]} e5 {[%emt 0:00:06]} 6. Nb3 {[%emt 0:00:11]} Bb4 {[%emt 0:00:06]} 7. f3 {[%emt 0:01:52]} d5 {[%emt 0:00:29]} 8. exd5 {[%emt 0:04:34]} Nxd5 {[%emt 0:00:41]} 9. Bd2 {[%emt 0:02:28]} Nxc3 {[%emt 0:00:43]} 10. bxc3 {[%emt 0:03:03]} Be7 {[%emt 0:00:07]} 11. Bd3 {[%emt 0:01:24]} Bh4+ {[%emt 0:02:25]} 12. g3 {[%emt 0:02:51]} Be7 {[%emt 0:02:13]} 13. O-O {[%emt 0:01:54]} Be6 {[%emt 0:03:14]} 14. Re1 {[%emt 0:02:23]} O-O {[%emt 0:02:31]} 15. Be3 {[%emt 0:04:26]} b6 {[%emt 0:06:08]} 16. Qe2 {[%emt 0:04:26]} Qc7 {[%emt 0:02:42]} 17. Rad1 {[%emt 0:02:10]} Bf6 {[%emt 0:08:00]} 18. Kg2 {[%emt 0:06:28]} g6 {[%emt 0:10:05]} 19. Qd2 {[%emt 0:03:12]} Rad8 {[%emt 0:03:51]} 20. Bg5 {[%emt 0:00:50]} Bxg5 {[%emt 0:03:04]} 21. Qxg5 {[%emt 0:00:50]} f6 {[%emt 0:00:05]} 22. Qc1 {[%emt 0:02:32]} Bf7 {[%emt 0:04:00]} 23. Re2 {[%emt 0:06:18]} Nb8 {[%emt 0:02:22]} 24. Qb2 {[%emt 0:04:26]} Rc8 {[%emt 0:01:29]} 25. Red2 {[%emt 0:02:41]} Rfd8 {[%emt 0:01:33]} 26. Qa3 {[%emt 0:02:02]} Kg7 {[%emt 0:02:59]} 27. Nc1 {[%emt 0:06:17]} Nc6 {[%emt 0:03:05]} 28. Ne2 {[%emt 0:03:04]} Na5 {[%emt 0:00:13]} 29. Bb5 {[%emt 0:06:02]} Rxd2 {[%emt 0:00:34]} 30. Rxd2 {[%emt 0:00:01]} Rd8 {[%emt 0:00:17]} 31. Rd3 {[%emt 0:04:47]} Rd5 {[%emt 0:07:18]} 32. Rxd5 {[%emt 0:02:39]} Bxd5 {[%emt 0:00:07]} 33. Bd3 {[%emt 0:02:26]} Qb7 {[%emt 0:01:08]} 34. Ng1 {[%emt 0:01:03]} Qf7 {[%emt 0:00:50]} 35. Kf2 {[%emt 0:03:24]} Bxa2 {[%emt 0:00:19]} 36. Ne2 {[%emt 0:01:48]} Bd5 {[%emt 0:00:09]} 37. Qa4 {[%emt 0:03:28]} Qb7 {[%emt 0:00:34]} 38. Be4 {[%emt 0:01:07]} Bxe4 {[%emt 0:00:35]} 39. fxe4 {[%emt 0:00:09]} Qc6 {[%emt 0:00:05]} 40. Qa1 {[%emt 0:01:31]} Qxe4 {[%emt 0:00:37]} 41. Qd1 {[%emt 0:00:02]} Qf5+ {[%emt 0:00:42]} 42. Kg2 {[%emt 0:00:26]} Nc4 {[%emt 0:00:20]} 43. Qd8 {[%emt 0:01:23]} Ne3+ {[%emt 0:00:05]} 44. Kh1 {[%emt 0:00:02]} Qf3+ {[%emt 0:00:09]} 45. Kg1 {[%emt 0:00:23]} Qg2# {[%emt 0:00:58]} 0-1

[Event "AUT-ch U18 Boys 2022"]
[Site "Sankt Veit an der Glan"]
[Date "2022.04.12"]
[Round "5.1"]
[White "Blasge, Tobias"]
[Black "Kristoferitsch, Daniel"]
[Result "0-1"]
[ECO "E10"]
[WhiteElo "1736"]
[BlackElo "2253"]
[Annotator "TA"]
[PlyCount "64"]
[EventDate "2022.04.11"]
[EventType "swiss"]
[EventCountry "AUT"]
[SourceTitle "playchess.com"]
[Source "ChessBase"]
[SourceQuality "1"]
[TimeControl "5400+30"]

{[%evp 14,63,41,35,64,68,91,87,103,34,72,47,118,112,125,112,116,117,106,8,17,0,74,96,99,96,85,76,68,75,76,81,81,79,77,29,786,198,197,197,191,190,181,-768,-736,-710,-686,-1041,-703,-699,-632,-29999]} 1. d4 {[%emt 0:00:04]} Nf6 {[%emt 0:00:08]} 2. c4 {[%emt 0:00:03]} e6 {[%emt 0:00:09]} 3. Nf3 {[%emt 0:00:05]} c5 {[%emt 0:00:07]} 4. d5 {[%emt 0:00:23]} b5 {[%emt 0:00:10]} 5. Bg5 {[%emt 0:04:45]} exd5 {[%emt 0:00:10]} 6. cxd5 {[%emt 0:02:50]} h6 {[%emt 0:00:09]} 7. Bxf6 {[%emt 0:04:06]} Qxf6 {[%emt 0:00:09]} 8. Qc2 {[%emt 0:04:13]} Bb7 {[%emt 0:05:05] E10: Blumenfeld Gambit.} 9. e4 {[%emt 0:02:31]} Qb6 {[%emt 0:00:11]} 10. a4 {[%emt 0:12:29]} a6 {[%emt 0:00:35] [#] White is better.} 11. b3 $146 {[%emt 0:09:01] Inhibits c4.} ({Better is} 11. Nbd2 $16) ({Predecessor:} 11. Qb3 c4 12. Bxc4 Bc5 13. axb5 Bxf2+ 14. Ke2 O-O 15. bxa6 Nxa6 16. Qxb6 Bxb6 17. Nbd2 {1-0 (48) Lalich,V-Benko,F Buenos Aires 1938}) 11... d6 {[%emt 0:03:35]} 12. axb5 {[%emt 0:01:46]} (12. Qb2 $5 {[%cal Ra4b5]}) 12... axb5 {[%emt 0:00:14]} ({Black should play} 12... Be7 $1 $14) 13. Rxa8 $16 {[%emt 0:00:04]} Bxa8 {[%emt 0:00:09]} 14. Nc3 {[%emt 0:00:11]} b4 {[%emt 0:05:20]} 15. Na4 {[%emt 0:01:02]} Qa5 {[%emt 0:02:28]} 16. Bc4 {[%emt 0:10:02]} (16. Qb2 $1 $16) 16... Be7 $11 {[%emt 0:02:01]} 17. O-O {[%emt 0:12:01]} Bf6 {[%emt 0:17:21]} (17... O-O $11) 18. e5 $16 {[%emt 0:17:56]} dxe5 {[%emt 0:00:13] [#]} 19. Nxe5 $1 {[%emt 0:00:44]} Bxe5 {[%emt 0:26:43]} 20. Qe4 $36 {[%emt 0:00:04][%mdl 2048] White is in control.} Nd7 {[%emt 0:02:27]} 21. f4 {[%emt 0:00:26][%mdl 64] Pin} Qc7 {[%emt 0:01:38][%cal Oe8g8]} 22. Re1 {[%emt 0:00:35]} (22. fxe5 Qxe5 23. Nxc5 Qxe4 24. Nxe4 O-O $11) 22... O-O {[%emt 0:02:07]} 23. fxe5 {[%emt 0:00:08] And now Qf5 would win.} Re8 {[%emt 0:01:49][%cal Re8e5] [#]} 24. e6 {[%emt 0:12:40]} ({Don't blunder} 24. Bd3 $2 Rxe5 25. Qh7+ Kf8 26. Rxe5 (26. Qh8+ $2 Ke7 $19) 26... Qxe5 $19) (24. d6 $1 $16 Qc6 25. Qxc6 Bxc6 26. e6 fxe6 27. Bxe6+ (27. Rxe6 Kf8 $11) 27... Kh8 28. Kf2) 24... Nf6 $2 {[%emt 0:03:43][%mdl 8192] [#]} (24... Rxe6 $11 25. dxe6 Bxe4 26. exd7 Qxd7 27. Rxe4 Qd1+ 28. Kf2 Qd2+ 29. Kf3 Qd6) 25. exf7+ $2 {[%emt 0:01:38]} (25. d6 $1 {[%mdl 512]} Bxe4 26. dxc7 fxe6 27. Bxe6+ $1 {[%mdl 512]} Kf8 28. Nxc5) 25... Qxf7 $18 {[%emt 0:00:21] [#]} 26. Qxe8+ {[%emt 0:00:10]} Nxe8 {[%emt 0:00:37]} 27. d6 $1 {[%emt 0:00:18]} Bd5 {[%emt 0:00:07]} 28. Bxd5 {[%emt 0:01:58][%mdl 8192]} (28. Nb6 $18 Bxc4 29. d7) 28... Qxd5 $19 {[%emt 0:00:07]} 29. Rxe8+ {[%emt 0:00:11]} Kf7 {[%emt 0:00:05]} 30. Rc8 {[%emt 0:02:20]} Qxd6 {[%emt 0:00:42]} 31. Nxc5 {[%emt 0:00:44]} Qe5 {[%emt 0:02:38][%cal Re5e1]} 32. Rc6 {[%emt 0:00:31]} Qe1# {Black used his chance.  Weighted Error Value: White=1.13/Black=0.40} 0-1

[Event "AUT-ch U18 Boys 2022"]
[Site "Sankt Veit an der Glan"]
[Date "2022.04.12"]
[Round "5.2"]
[White "Schernthaner, David"]
[Black "Stadlinger, Matthias"]
[Result "1-0"]
[ECO "B07"]
[WhiteElo "2213"]
[BlackElo "2013"]
[Annotator "TA"]
[PlyCount "89"]
[EventDate "2022.04.11"]
[EventType "swiss"]
[EventCountry "AUT"]
[SourceTitle "playchess.com"]
[Source "ChessBase"]
[SourceQuality "1"]
[TimeControl "5400+30"]

{[%evp 12,89,16,9,0,0,0,0,17,0,0,-14,93,66,97,78,79,63,58,46,34,49,63,73,236,250,371,365,386,231,198,197,225,222,215,103,244,258,529,544,633,594,666,667,834,802,775,620,606,614,590,583,547,435,635,517,1053,1081,1497,1127,1003,860,829,819,1198,1142,1577,1502,1645,1266,1562,1403,2317,2342,5213,2761,29982,29983,29976,12453]} 1. d4 {[%emt 0:00:03]} d6 {[%emt 0:00:06]} 2. e4 {[%emt 0:00:04][%cal Be2e4,Be4e5][%mdl 32]} Nf6 {[%emt 0:00:06]} 3. Nc3 {[%emt 0:00:04]} c6 {[%emt 0:04:56]} 4. f4 {[%emt 0:02:28]} Qa5 {[%emt 0:00:13]} 5. e5 {[%emt 0:09:04]} Ne4 {[%emt 0:01:15]} 6. Bd2 {[%emt 0:06:38]} Nxd2 {[%emt 0:05:43]} 7. Qxd2 {[%emt 0:00:16]} d5 {[%emt 0:08:50] is the legacy move (7...Bf5). B07: Pirc Defence: Miscellaneous Systems.} 8. O-O-O {[%emt 0:06:42]} b5 {[%emt 0:00:05]} 9. Kb1 {[%emt 0:01:06] [#]} e6 $146 {[%emt 0:07:20] The position is equal.} ({Predecessor:} 9... Bg4 10. Re1 Bd7 11. a3 Qb6 12. Nf3 e6 13. Be2 c5 14. f5 b4 15. fxe6 fxe6 16. axb4 cxb4 {0-1 (50) Leyen,P-Belanoff,S IECG email 1997}) 10. Bd3 {[%emt 0:02:57]} Nd7 {[%emt 0:00:55][%cal Bb8d7,Bd7b6,Bb6c4][%mdl 32]} 11. Nce2 {[%emt 0:07:20]} Qa6 {[%emt 0:15:07]} (11... Qxd2 $11 12. Rxd2 a6) 12. f5 {[%emt 0:06:36]} Nb6 {[%emt 0:11:42]} 13. fxe6 {[%emt 0:00:06] &Bianco is more active.} Bxe6 {[%emt 0:00:12]} 14. Nh3 $36 {[%emt 0:04:12][%cal Bg1h3,Bh3f4,Bf4h5][%mdl 2080] White has good play.} Nc4 {[%emt 0:02:14]} 15. Qf4 {[%emt 0:07:08]} h6 {[%emt 0:14:06] Against Ng5} 16. Qf3 {[%emt 0:06:25]} Be7 {[%emt 0:01:33]} 17. Nhf4 {[%emt 0:01:29]} Bd7 {[%emt 0:01:14]} (17... g5 $16) 18. Nh5 $18 {[%emt 0:04:45]} Be6 {[%emt 0:03:22]} (18... Bf8 $142 19. Rhf1 O-O-O 20. Bxc4 (20. Qxf7 Ne3 $16) 20... bxc4 21. Qxf7 Qb7) 19. Nxg7+ {[%emt 0:02:50]} Kd7 {[%emt 0:00:04]} 20. Bxc4 {[%emt 0:03:49]} (20. Bf5 $142) 20... bxc4 {[%emt 0:00:30]} 21. Nf4 {[%emt 0:00:33]} Rab8 {[%emt 0:00:51]} 22. Ngxe6 {[%emt 0:00:45] Chess con chili.} fxe6 {[%emt 0:00:10]} 23. Rhf1 {[%emt 0:04:10]} (23. Qh3 $18 {has better winning chances.} Qa3 24. b3 (24. Qxa3 Bxa3 25. b3 c5 $14) (24. Qxe6+ $2 Kc7 $19)) 23... Rhf8 {[%emt 0:02:12]} (23... Qa3 $16 24. Qxa3 Bxa3) 24. Qh3 $1 {[%emt 0:00:16][%csl LRe6,LRh6]} c5 $2 {[%emt 0:01:10]} (24... Qa3 25. b3 (25. Qxa3 Bxa3 26. b3 c5 $16) (25. Qxe6+ $2 Kc7 $19) 25... Rxf4) 25. dxc5 {[%emt 0:00:33]} Rxf4 {[%emt 0:03:12]} 26. Rxf4 {[%emt 0:00:30] [#] Threatens to win with Rxd5+.} Qb5 {[%emt 0:00:26][%csl Gb8][%cal Rb5b2]} 27. b3 {[%emt 0:00:40] Hoping for Rxd5+.} Qxc5 {[%emt 0:00:17]} 28. Rfd4 {[%emt 0:01:32] Threatening mate with Rxd5+.} Rb5 {[%emt 0:00:27]} 29. Rxd5+ {[%emt 0:00:57]} Qxd5 {[%emt 0:00:05]} 30. Rxd5+ {[%emt 0:00:04]} Rxd5 {[%emt 0:00:04]} 31. bxc4 {[%emt 0:00:21]} Rxe5 {[%emt 0:00:05][%mdl 4096] Endgame KQ-KRB} 32. a4 {[%emt 0:01:01]} Bg5 {[%emt 0:00:56]} (32... h5 $142 33. Qb3 Kc8) 33. Qf3 {[%emt 0:00:39] [#] And now Qb7+ would win.} Re1+ {[%emt 0:01:07]} (33... Rc5 $142 34. Kb2 Rc7) 34. Ka2 {[%emt 0:00:19]} Be3 {[%emt 0:00:50]} 35. Qg3 {[%emt 0:00:45]} Re2 {[%emt 0:00:23]} 36. Kb3 {[%emt 0:00:15]} Bd4 {[%emt 0:00:19] Prevents Qg7+.} 37. Qf4 {[%emt 0:01:51][%csl LRd4,LRh6]} ({Don't blunder} 37. Qd3 $2 Re3 38. Kb4 Rxd3 39. cxd3 Kc6 $19) 37... Re3+ {[%emt 0:00:44]} 38. Kb4 {[%emt 0:01:20]} e5 {[%emt 0:00:28]} 39. Qf7+ {[%emt 0:00:05]} Kc6 {[%emt 0:00:20]} 40. Qg6+ {[%emt 0:00:12]} Kc7 {[%emt 0:00:50]} 41. Qh7+ {[%emt 0:00:11]} Kc6 {[%emt 0:01:20]} 42. Qxh6+ {[%emt 0:00:04]} Kc7 {[%emt 0:00:12]} 43. c5 {[%emt 0:01:00][%cal Bc4c5,Bc5c6][%mdl 32] White threatens Qd6+ and mate.} Rc3 {[%emt 0:00:41]} 44. Qd6+ {[%emt 0:00:09]} Kc8 {[%emt 0:01:42]} 45. c6 {[%emt 0:01:19] Weighted Error Value: White=0.32/Black=0.66} 1-0

[Event "AUT-ch U18 Boys 2022"]
[Site "Sankt Veit an der Glan"]
[Date "2022.04.12"]
[Round "5.3"]
[White "Ilijic, Mihajilo"]
[Black "Cafasso, Elia"]
[Result "1-0"]
[ECO "C84"]
[WhiteElo "2079"]
[BlackElo "2061"]
[Annotator "TA"]
[PlyCount "79"]
[EventDate "2022.04.11"]
[EventType "swiss"]
[EventCountry "AUT"]
[SourceTitle "playchess.com"]
[Source "ChessBase"]
[SourceQuality "1"]
[TimeControl "5400+30"]

{[%evp 16,79,13,4,23,21,25,11,46,39,34,25,32,21,29,0,6,8,15,10,63,41,67,31,130,128,139,74,75,59,45,56,56,40,95,120,113,85,314,101,106,104,411,411,404,402,730,708,993,989,29969,29970,29972,29972,29979,29978,29976,29977,29982,29983,29984,29983,29985,29986,29985,29985]} 1. e4 {[%emt 0:00:04]} e5 {[%emt 0:00:04]} 2. Nf3 {[%emt 0:00:07]} Nc6 {[%emt 0:00:03]} 3. Bb5 {[%emt 0:00:09][%cal Bf1b5,Bb5a4,Ba4b3,Bb3a2][%mdl 32]} a6 {[%emt 0:00:03]} 4. Ba4 {[%emt 0:00:09]} Nf6 {[%emt 0:00:05]} 5. O-O {[%emt 0:00:14]} Be7 {[%emt 0:00:05]} 6. d3 {[%emt 0:00:15]} b5 {[%emt 0:00:05]} 7. Bb3 {[%emt 0:00:05]} d6 {[%emt 0:00:30]} 8. a3 {[%emt 0:00:07]} O-O {[%emt 0:00:16]} 9. Nc3 {[%emt 0:00:11]} Na5 {[%emt 0:00:14] C77: Ruy Lopez: 3...a6 4 Ba4 Nf6, unusual lines.} 10. Ba2 {[%emt 0:00:07]} Be6 {[%emt 0:00:48]} 11. Nd5 {[%emt 0:03:52]} c6 {[%emt 0:02:39] The position is equal.} 12. Nxf6+ Bxf6 {[%emt 0:00:06]} 13. Bxe6 {[%emt 0:02:56]} fxe6 {[%emt 0:00:05]} 14. b4 {[%emt 0:01:30]} Nb7 {[%emt 0:00:07]} 15. Bb2 {[%emt 0:00:50]} Qc7 {[%emt 0:06:17]} 16. c4 {[%emt 0:04:30] [#]} bxc4 $146 {[%emt 0:08:17]} ({Predecessor:} 16... c5 17. Qb3 bxc4 18. Qxc4 Qd7 19. bxc5 Rfc8 20. d4 exd4 21. Bxd4 Bxd4 22. Qxd4 Rxc5 {1-0 (55) Korneev,O (2598)-Sonntag,H (2352) Germany 2017}) 17. dxc4 {[%emt 0:00:24][%cal Oc4c5]} a5 {[%emt 0:06:40]} (17... c5 $11) 18. Qe2 {[%emt 0:07:42]} Ra7 {[%emt 0:10:29]} 19. c5 {[%emt 0:14:44]} d5 {[%emt 0:04:25]} (19... axb4 $14 20. cxd6 (20. axb4 Rxa1 21. Rxa1 dxc5 $11) 20... Qxd6) 20. exd5 $16 {[%emt 0:07:28]} e4 {[%emt 0:00:29] [#]} 21. Bxf6 {[%emt 0:02:54]} (21. Qxe4 $142 $1 Bxb2 22. Rab1 (22. dxc6 Bxa1 23. Ng5 g6 $11) (22. Qxe6+ Kh8 $16) (22. Ng5 g6 $16) 22... axb4 23. axb4 exd5 24. Qe6+ Qf7 25. Qxf7+ Rxf7 26. Rxb2) 21... exd5 {[%emt 0:04:16]} 22. Bh4 {[%emt 0:01:51] And now Nd4 would win.} exf3 {[%emt 0:00:43]} 23. Qe6+ {[%emt 0:00:33]} Kh8 {[%emt 0:02:50]} 24. Bg3 {[%emt 0:02:39]} Qc8 {[%emt 0:00:15]} (24... Nd8 $1 $14 25. Qg4 Qf7) 25. Qxc8 {[%emt 0:05:06] 0x0.002037565f53dp-1022s more active pieces. The black rooks are badly placed.} Rxc8 {[%emt 0:00:02]} 26. gxf3 {[%emt 0:00:50] Black must now prevent Rae1.} Rca8 $2 {[%emt 0:01:04]} (26... Kg8 $16 {was worth a try.}) 27. Rab1 $2 {[%emt 0:02:19]} (27. b5 $18) 27... axb4 {[%emt 0:01:08]} 28. axb4 {[%emt 0:00:05] [#] Hoping for b5.} Ra3 $2 {[%emt 0:00:05][%mdl 8192]} (28... Nd8 $16 {is more resistant.}) 29. b5 $18 {[%emt 0:02:28]} cxb5 {[%emt 0:00:41]} 30. c6 {[%emt 0:00:10]} Na5 {[%emt 0:00:24]} (30... Nd8 $142 31. c7 Rxf3 32. Rxb5 Ne6) 31. c7 {[%emt 0:01:10]} Nb3 {[%emt 0:00:34]} 32. Rfd1 {[%emt 0:00:25]} d4 {[%emt 0:00:46]} 33. Rd3 {[%emt 0:00:12] White mates.} Ra1 {[%emt 0:00:50]} 34. Rdxb3 {[%emt 0:00:22]} h5 {[%emt 0:00:23]} 35. c8=Q+ {[%emt 0:00:15]} Rxc8 {[%emt 0:00:06]} 36. Rxa1 {[%emt 0:00:09]} Rc3 {[%emt 0:00:27]} 37. Rxb5 {[%emt 0:00:17]} d3 {[%emt 0:00:17]} 38. Rxh5+ {[%emt 0:00:47]} Kg8 {[%emt 0:00:02]} 39. Rd5 {[%emt 0:00:10]} d2 {[%emt 0:00:20]} 40. Rxd2 {[%emt 0:00:11] Weighted Error Value: White=0.17 (very precise) /Black=0.72} 1-0

[Event "AUT-ch U18 Boys 2022"]
[Site "Sankt Veit an der Glan"]
[Date "2022.04.12"]
[Round "5.4"]
[White "Tumanyan, Gor"]
[Black "Buchegger, Fridolin"]
[Result "1-0"]
[ECO "C55"]
[WhiteElo "1818"]
[BlackElo "2010"]
[Annotator "RC"]
[PlyCount "39"]
[EventDate "2022.04.11"]
[EventType "swiss"]
[EventCountry "AUT"]
[SourceTitle "playchess.com"]
[Source "ChessBase"]
[SourceQuality "1"]
[TimeControl "5400+30"]

1. e4 {[%emt 0:00:02]} e5 {[%emt 0:00:07]} 2. Nf3 {[%emt 0:00:03]} Nc6 {[%emt 0:00:09]} 3. Bc4 {[%emt 0:00:05]} Bc5 {[%emt 0:00:06]} 4. O-O {[%emt 0:00:21]} Nf6 {[%emt 0:00:20]} 5. d4 {[%emt 0:00:10]} exd4 {[%emt 0:03:20]} 6. e5 {[%emt 0:00:37]} d5 {[%emt 0:01:12]} 7. exf6 {[%emt 0:01:16]} dxc4 {[%emt 0:00:16]} 8. Re1+ {[%emt 0:01:05]} Be6 {[%emt 0:01:29]} 9. Ng5 {[%emt 0:05:48]} Qd5 {[%emt 0:01:32]} 10. Nc3 {[%emt 0:00:47]} Qf5 {[%emt 0:01:15]} 11. g4 {[%emt 0:01:28]} Qxf6 {[%emt 0:09:17]} 12. Nd5 {[%emt 0:00:38]} Qd8 {[%emt 0:00:14]} 13. Rxe6+ {[%emt 0:00:20]} fxe6 {[%emt 0:00:22]} 14. Nxe6 {[%emt 0:00:09]} Qd6 {[%emt 0:00:41]} 15. Bf4 {[%emt 0:13:26]} Qxe6 {[%emt 0:06:47]} 16. Nxc7+ {[%emt 0:00:44]} Kd7 {[%emt 0:00:07]} 17. Nxe6 {[%emt 0:00:13]} Kxe6 {[%emt 0:00:06]} 18. Qe2+ {[%emt 0:02:02]} Kd7 {[%emt 0:01:17]} 19. Qxc4 {[%emt 0:00:52]} Bb6 {[%emt 0:00:20]} 20. Qd5+ {[%emt 0:00:13]} 1-0

[Event "AUT-ch U18 Boys 2022"]
[Site "Sankt Veit an der Glan"]
[Date "2022.04.12"]
[Round "5.5"]
[White "Marte, Lukas"]
[Black "Lotz, Dominik"]
[Result "0-1"]
[ECO "B12"]
[WhiteElo "1614"]
[BlackElo "1583"]
[Annotator "NA RC"]
[PlyCount "82"]
[EventDate "2022.04.11"]
[EventType "swiss"]
[EventCountry "AUT"]
[SourceTitle "playchess.com"]
[Source "ChessBase"]
[SourceQuality "1"]
[TimeControl "5400+30"]

1. e4 {[%emt 0:01:15]} c6 {[%emt 0:00:04]} 2. d4 {[%emt 0:00:18]} d5 {[%emt 0:00:07]} 3. e5 {[%emt 0:00:25]} Bf5 {[%emt 0:00:06]} 4. Bd3 {[%emt 0:01:50]} Bxd3 {[%emt 0:00:11]} 5. Qxd3 {[%emt 0:00:07]} e6 {[%emt 0:00:05]} 6. Be3 {[%emt 0:03:15]} Nd7 {[%emt 0:00:34]} 7. Nd2 {[%emt 0:01:11]} Qb6 {[%emt 0:00:44]} 8. Qb3 {[%emt 0:08:09]} Ne7 {[%emt 0:02:43]} 9. Ne2 {[%emt 0:03:56]} Nf5 {[%emt 0:00:47]} 10. c3 {[%emt 0:02:28]} Qa6 {[%emt 0:05:59]} 11. Qc2 {[%emt 0:07:50]} c5 {[%emt 0:07:24]} 12. Nf3 {[%emt 0:02:22]} Rc8 {[%emt 0:01:41]} 13. Qd2 {[%emt 0:00:45]} cxd4 {[%emt 0:05:52]} 14. Bxd4 {[%emt 0:04:19]} Nc5 {[%emt 0:02:30]} 15. Bxc5 {[%emt 0:04:28]} Bxc5 16. O-O {[%emt 0:00:07]} O-O {[%emt 0:00:33]} 17. Ned4 {[%emt 0:01:26]} Ne7 {[%emt 0:01:10]} 18. a4 {[%emt 0:02:47]} Bxd4 {[%emt 0:19:00]} 19. Nxd4 {[%emt 0:00:50]} Nc6 {[%emt 0:00:03]} 20. f4 {[%emt 0:01:30]} Nxd4 {[%emt 0:03:34]} 21. cxd4 {[%emt 0:03:28]} Rc6 {[%emt 0:00:46]} 22. Rfc1 {[%emt 0:01:01]} Rfc8 {[%emt 0:00:17]} 23. g3 {[%emt 0:03:49]} h6 {[%emt 0:00:31]} 24. Rc3 {[%emt 0:03:31]} Rxc3 {[%emt 0:03:14]} 25. bxc3 {[%emt 0:00:07]} Rc4 {[%emt 0:00:04]} 26. Qb2 {[%emt 0:01:41]} Rxa4 {[%emt 0:07:42]} 27. Rxa4 {[%emt 0:01:27]} Qxa4 {[%emt 0:00:01]} 28. Qxb7 {[%emt 0:00:12]} Qa1+ {[%emt 0:00:01]} 29. Kg2 {[%emt 0:00:09]} a5 {[%emt 0:00:12]} 30. Qb8+ {[%emt 0:01:45]} Kh7 {[%emt 0:00:06]} 31. Qc7 {[%emt 0:00:04]} Kg6 {[%emt 0:00:52]} 32. h4 {[%emt 0:00:21]} h5 {[%emt 0:00:51]} 33. g4 {[%emt 0:01:09]} Qd1 {[%emt 0:01:33]} 34. f5+ {[%emt 0:03:34]} Kh7 {[%emt 0:03:36]} 35. gxh5 {[%emt 0:04:49]} Qg4+ {[%emt 0:00:12]} 36. Kf2 {[%emt 0:00:46]} Qxf5+ {[%emt 0:00:02]} 37. Ke3 {[%emt 0:00:15]} a4 {[%emt 0:00:45]} 38. Qa7 {[%emt 0:00:39]} Qc2 {[%emt 0:15:43]} 39. Qxf7 {[%emt 0:00:27]} Qxc3+ {[%emt 0:00:27]} 40. Ke2 {[%emt 0:00:08]} Qc2+ {[%emt 0:00:13]} 41. Kf3 {[%emt 0:00:06]} Qe4+ 0-1

[Event "AUT-ch U18 Boys 2022"]
[Site "Sankt Veit an der Glan"]
[Date "2022.04.12"]
[Round "5.6"]
[White "Pribozic, Manuel"]
[Black "Loreth, Thomas"]
[Result "0-1"]
[ECO "B01"]
[WhiteElo "1543"]
[BlackElo "1628"]
[Annotator "NA RC"]
[PlyCount "102"]
[EventDate "2022.04.11"]
[EventType "swiss"]
[EventCountry "AUT"]
[SourceTitle "playchess.com"]
[Source "ChessBase"]
[SourceQuality "1"]
[TimeControl "5400+30"]

1. e4 {[%emt 0:00:13]} d5 {[%emt 0:00:41]} 2. exd5 {[%emt 0:00:52]} Nf6 {[%emt 0:00:17]} 3. d4 {[%emt 0:01:41]} Bg4 {[%emt 0:03:22]} 4. Be2 {[%emt 0:00:32]} Bxe2 {[%emt 0:00:06]} 5. Qxe2 {[%emt 0:00:20]} Qxd5 {[%emt 0:00:10]} 6. Nf3 {[%emt 0:00:18]} Nc6 {[%emt 0:01:29]} 7. c4 {[%emt 0:05:05]} Qh5 {[%emt 0:00:23]} 8. Nc3 {[%emt 0:03:12]} e6 {[%emt 0:00:06]} 9. d5 {[%emt 0:08:28]} Nd8 {[%emt 0:00:11]} 10. Bf4 {[%emt 0:03:57]} Bb4 {[%emt 0:00:41]} 11. Bxc7 {[%emt 0:11:59]} Bxc3+ {[%emt 0:00:26]} 12. bxc3 {[%emt 0:00:02]} O-O {[%emt 0:00:15]} 13. d6 {[%emt 0:00:02]} Ne8 {[%emt 0:00:16]} 14. Qe4 {[%emt 0:11:32]} Nxc7 {[%emt 0:03:40]} 15. dxc7 {[%emt 0:00:23]} Nc6 {[%emt 0:00:08]} 16. Rb1 {[%emt 0:00:44]} Qa5 {[%emt 0:00:11]} 17. Rxb7 {[%emt 0:03:43]} Qxc3+ {[%emt 0:00:24]} 18. Nd2 {[%emt 0:00:02]} Nd4 {[%emt 0:01:15]} 19. Rb1 {[%emt 0:03:08]} Nc2+ {[%emt 0:00:32]} 20. Kd1 {[%emt 0:00:03]} Nb4 {[%emt 0:02:57]} 21. Ke2 {[%emt 0:09:57]} Na6 {[%emt 0:01:16]} 22. Qc6 {[%emt 0:14:05]} Qe5+ {[%emt 0:00:44]} 23. Qe4 {[%emt 0:02:19]} Qxc7 {[%emt 0:00:41]} 24. g3 {[%emt 0:02:33]} Rad8 {[%emt 0:00:55]} 25. Rhd1 {[%emt 0:01:48]} Nc5 {[%emt 0:00:29]} 26. Qc2 {[%emt 0:01:40]} Qc6 {[%emt 0:01:06]} 27. Nf3 {[%emt 0:01:50]} g6 {[%emt 0:01:11]} 28. Ne5 {[%emt 0:03:49]} Qc7 {[%emt 0:01:40]} 29. Nd3 {[%emt 0:00:44]} Rc8 {[%emt 0:00:37]} 30. Nxc5 {[%emt 0:00:35]} Qxc5 {[%emt 0:00:04]} 31. Rdc1 {[%emt 0:00:08]} Rfd8 {[%emt 0:00:20]} 32. Rb5 {[%emt 0:01:29]} Qc6 {[%emt 0:00:11]} 33. Qb3 {[%emt 0:01:07]} Qe4+ {[%emt 0:00:29]} 34. Qe3 {[%emt 0:00:10]} Rxc4 {[%emt 0:00:39]} 35. Qxe4 {[%emt 0:01:09]} Rxe4+ {[%emt 0:00:07]} 36. Kf3 {[%emt 0:00:05]} Ra4 {[%emt 0:00:14]} 37. Rc2 {[%emt 0:01:53]} Rd7 {[%emt 0:00:16]} 38. Rbb2 {[%emt 0:01:25]} Kg7 {[%emt 0:00:11]} 39. Rc3 {[%emt 0:00:50]} f5 {[%emt 0:00:25]} 40. Ke3 {[%emt 0:01:24]} Kf6 {[%emt 0:01:00]} 41. f4 {[%emt 0:00:33]} g5 {[%emt 0:00:04]} 42. Kf3 {[%emt 0:00:19]} gxf4 {[%emt 0:00:07]} 43. gxf4 {[%emt 0:00:02]} Rdd4 {[%emt 0:00:09]} 44. Rc7 {[%emt 0:00:41]} Rxf4+ {[%emt 0:00:05]} 45. Kg3 {[%emt 0:00:13]} Rg4+ {[%emt 0:00:11]} 46. Kf3 {[%emt 0:02:04]} Rh4 {[%emt 0:00:20]} 47. Kg2 {[%emt 0:01:30]} h5 {[%emt 0:00:27]} 48. Rc8 {[%emt 0:01:25]} Rhg4+ {[%emt 0:00:09]} 49. Kf2 {[%emt 0:00:23]} Raf4+ {[%emt 0:00:18]} 50. Ke1 {[%emt 0:00:12]} Rg1+ {[%emt 0:00:09]} 51. Kd2 {[%emt 0:00:06]} Rg2+ {[%emt 0:00:11]} 0-1